bitfinex/quotes_ETHUSD_20250328
["timestamp","ask_amount","ask_price","bid_price","bid_amount"]
[1743181368992,28.253,1875.0,1874.8,6.08473]
[1743181369193,11.39258,1875.3,1875.0,5.33332]
[1743181369424,6.06,1875.3,1875.0,5.33332]
[1743181369697,7.15360201,1875.4,1875.1,5.38623702]
[1743181370000,6.06,1875.4,1875.1,11.4589]
[1743181370385,6.06,1875.4,1875.2,5.33276]
[1743181370594,11.39191,1875.5,1875.2,5.33276]
[1743181371273,5.93078,1875.9,1875.5,5.33181]
[1743181371274,5.38086,1875.9,1875.5,5.33181]
[1743181371479,5.38086,1875.9,1875.6,5.33148]
[1743181371480,6.11,1875.9,1875.6,5.33148]
[1743181371666,11.44078,1875.9,1875.5,5.33179]
[1743181372289,6.11,1875.9,1875.6,5.33156]
[1743181372566,11.44078,1875.9,1875.5,5.33178]
[1743181372898,11.44078,1875.9,1875.6,5.33162]
[1743181373265,11.44078,1875.9,1875.5,6.398174]
[1743181373899,11.44078,1875.9,1875.5,11.729924]
[1743181374502,11.44078,1875.9,1875.5,6.398144]
[1743181375113,5.33157,1875.7,1875.3,6.10617]
[1743181375267,5.33171,1875.6,1875.3,0.7738]
[1743181375464,5.33157,1875.7,1875.3,6.10626]
[1743181375895,5.33152,1875.7,1875.3,6.10626]
[1743181376204,5.3311,1875.8,1875.3,0.8271177]
[1743181376382,5.3311,1875.8,1875.4,5.33193]
[1743181377081,11.44078,1875.9,1875.4,1.143816]
[1743181377265,11.44078,1875.9,1875.5,5.33181]
[1743181378421,11.44082,1875.9,1875.4,5.33216]
[1743181378586,11.44082,1875.9,1875.5,5.3319]
[1743181378907,5.33111,1875.8,1875.4,5.332]
[1743181379199,10.66236,1875.8,1875.4,5.332]
[1743181379371,5.33111,1875.8,1875.4,6.475826]
[1743181379568,6.11,1875.9,1875.5,5.33187]
[1743181379802,11.44081,1875.9,1875.6,6.14274087]
[1743181380105,6.11,1875.9,1875.6,6.14262087]
[1743181380306,6.11,1875.9,1875.6,6.08931]
[1743181380810,6.11,1875.9,1875.6,11.42078]
[1743181381012,6.11,1875.9,1875.6,12.562858]
[1743181381186,6.11,1875.9,1875.7,5.33133]
[1743181381695,6.11,1875.9,1875.7,5.3312]
[1743181382011,6.11,1875.9,1875.8,5.33105]
[1743181382512,0.05,1875.9,1875.8,6.11695]
[1743181382713,0.05,1875.9,1875.8,7.31506602]
[1743181383281,0.05,1875.9,1875.8,1.930715]
[1743181383485,0.05,1875.9,1875.8,7.261765]
[1743181383721,0.05,1875.9,1875.8,1.930715]
[1743181383896,5.33122,1875.8,1875.3,6.11558]
[1743181384088,5.33173,1875.6,1875.3,0.7831]
[1743181384418,5.33172,1875.6,1875.2,5.33265]
[1743181384925,15.24570885,1875.7,1875.3,5.33245]
[1743181384926,6.06,1875.7,1875.3,5.33245]
[1743181385088,6.06,1875.7,1875.5,0.8042]
[1743181385289,6.06,1875.7,1875.5,6.13609]
[1743181385492,6.06,1875.7,1875.6,5.33162]
[1743181386321,6.06,1875.7,1875.6,5.38493082]
[1743181386625,6.06,1875.7,1875.6,6.48370708]
[1743181387327,6.06,1875.7,1875.6,6.53701791]
[1743181387808,6.06,1875.7,1875.6,6.48370708]
[1743181388010,6.06,1875.7,1875.5,0.8042]
[1743181388215,11.39136,1875.7,1875.5,0.8042]
[1743181388415,11.39136,1875.7,1875.4,5.33208]
[1743181388615,6.06,1875.7,1875.4,5.33208]
[1743181388926,6.06,1875.7,1875.6,6.15122]
[1743181389234,6.06,1875.7,1875.6,6.766342]
[1743181389721,0.05,1875.9,1875.6,6.766192]
[1743181389932,0.05,1875.9,1875.7,5.33122]
[1743181390094,0.05,1875.9,1875.7,5.33116]
[1743181390292,0.05,1875.9,1875.8,6.68577048]
[1743181390500,0.05,1875.9,1875.8,6.632466]
[1743181391426,0.05,1875.9,1875.8,9.632466]
[1743181392421,0.05,1875.9,1875.8,14.899466]
[1743181392798,6.06,1876.7,1876.4,5.32924]
[1743181393016,44.94466,1876.8,1876.4,6.14404]
[1743181393217,39.61623,1876.8,1876.5,5.32905]
[1743181393602,39.61623,1876.8,1876.4,11.47326]
[1743181393822,39.61623,1876.8,1876.4,6.14403]
[1743181394021,44.9447,1876.8,1876.4,6.14403]
[1743181394211,40.68854813,1876.8,1876.4,6.14403]
[1743181394531,5.32878,1876.6,1876.2,0.8148]
[1743181394731,5.32912,1876.5,1876.2,0.8148]
[1743181395029,5.32851,1876.7,1876.4,5.32933]
[1743181395235,40.68854813,1876.8,1876.4,10.65848]
[1743181395833,34.288,1876.8,1876.5,10.6578]
[1743181396032,34.288,1876.8,1876.6,5.32854]
[1743181396752,34.288,1876.8,1876.6,10.65721]
[1743181396953,34.288,1876.8,1876.7,5.3285]
[1743181397259,39.61624,1876.8,1876.5,1.89588]
[1743181397567,5.32869,1876.7,1876.2,6.15997]
[1743181397732,5.32907,1876.5,1876.2,7.075967]
[1743181398057,5.32907,1876.5,1876.2,0.8301]
[1743181398058,10.65831,1876.5,1876.2,0.8301]
[1743181398256,5.32907,1876.5,1876.1,8.74099831]
[1743181398572,5.33035,1876.1,1875.7,5.33114]
[1743181398771,5.3306,1876.0,1875.7,5.33114]
[1743181399054,5.3307,1876.0,1875.6,6.16172]
[1743181399577,5.33068,1876.0,1875.6,6.16163]
[1743181399859,5.33086,1875.9,1875.6,6.16163]
[1743181400356,5.33066,1876.0,1875.6,6.16163]
[1743181400548,5.33155,1875.7,1875.3,5.33246]
[1743181400724,10.66313,1875.7,1875.3,6.51838018]
[1743181400931,10.66313,1875.7,1875.3,1.18592018]
[1743181400932,5.33205,1875.5,1875.3,1.18592018]
[1743181401131,5.33205,1875.5,1875.2,6.12806]
[1743181401375,11.39151,1875.7,1875.3,5.33238]
[1743181401872,11.39151,1875.7,1875.3,10.66476]
[1743181402246,5.33163,1875.6,1875.3,5.33238]
[1743181402562,5.33212,1875.5,1875.2,0.7953]
[1743181402742,5.3321,1875.5,1875.3,0.05331907]
[1743181403154,5.3321,1875.5,1875.2,0.7953]
[1743181403359,15.23421691,1875.7,1875.0,6.1432777]
[1743181403561,5.33233,1875.4,1875.0,6.1433277]
[1743181403760,5.332,1875.5,1875.1,5.33294]
[1743181404078,5.332,1875.5,1875.2,0.533294]
[1743181404377,10.66407,1875.5,1875.2,0.533294]
[1743181404578,5.332,1875.5,1875.2,0.533294]
[1743181404949,5.33163,1875.6,1875.2,5.865954]
[1743181405156,5.33202,1875.5,1875.2,0.533294]
[1743181405776,12.43986609,1875.7,1875.0,6.1432877]
[1743181405777,5.33234,1875.4,1875.0,6.1432877]
[1743181405974,5.33286,1875.2,1875.0,0.0043377]
[1743181406566,9.17578691,1875.1,1875.0,0.0043377]
[1743181406879,5.33304,1875.1,1875.0,0.0043377]
[1743181407048,14.44178691,1875.1,1875.0,0.0043377]
[1743181407243,21.05178691,1875.1,1875.0,0.0043377]
[1743181410782,24.05178691,1875.1,1875.0,0.0043377]
[1743181410977,24.05178691,1875.1,1875.0,7.7e-06]
[1743181412173,20.20904,1875.1,1875.0,7.7e-06]
[1743181412373,16.66004,1875.1,1875.0,7.7e-06]
[1743181412679,11.39304,1875.1,1875.0,7.7e-06]
[1743181413060,12.47510719,1875.1,1875.0,7.7e-06]
[1743181413263,6.06,1875.1,1875.0,7.7e-06]
[1743181413763,6.06,1875.2,1875.0,7.7e-06]
[1743181414612,11.3929,1875.2,1875.0,7.7e-06]
[1743181415365,6.06,1875.2,1875.1,0.7833]
[1743181416003,11.39276,1875.2,1875.1,0.7833]
[1743181416497,11.39276,1875.2,1875.0,7.7e-06]
[1743181416687,16.72571,1875.2,1875.0,7.7e-06]
[1743181416995,5.33304,1875.1,1875.0,7.7e-06]
[1743181417201,9.17578691,1875.1,1875.0,7.7e-06]
[1743181417779,18.78578691,1875.1,1875.0,7.7e-06]
[1743181420874,5.3356,1874.2,1874.1,0.8076]
[1743181421199,11.3955923,1874.2,1874.1,0.05]
[1743181424183,6.0599923,1874.2,1874.1,0.05]
[1743181424801,6.0599923,1874.2,1874.1,6.716491]
[1743181425491,1.06158407,1874.5,1874.1,6.716491]
[1743181425704,6.39643407,1874.5,1874.1,6.716491]
[1743181426113,1.06158407,1874.5,1874.2,5.3355]
[1743181426310,6.0599923,1874.6,1874.3,5.3352]
[1743181426612,6.0599923,1874.9,1874.6,5.33447]
[1743181427120,6.0599923,1874.9,1874.7,5.33417]
[1743181427307,6.0599923,1874.9,1874.8,0.7763]
[1743181427910,6.0599923,1875.2,1874.9,5.33361]
[1743181428213,6.0599923,1875.2,1875.0,5.33315]
[1743181428526,6.0599923,1875.2,1874.9,5.3334]
[1743181428676,6.0599923,1875.2,1874.8,0.7763]
[1743181429011,6.0599923,1875.2,1874.8,6.11009]
[1743181429211,11.3928023,1875.2,1874.8,11.44382]
[1743181429378,11.3928023,1875.2,1874.8,11.44378]
[1743181429579,12.48742682,1875.2,1874.8,11.44371]
[1743181429774,12.48742682,1875.2,1874.8,11.44374]
[1743181429974,12.48742682,1875.2,1874.8,11.44376]
[1743181430219,7.15454682,1875.2,1874.9,5.33349]
[1743181431314,6.0599923,1875.2,1875.1,5.33304]
[1743181431617,6.0599923,1875.2,1874.9,0.0533302]
[1743181431618,6.0599923,1875.2,1874.9,5.33347]
[1743181432379,6.0599923,1875.2,1875.0,5.33323]
[1743181433200,6.0599923,1875.2,1875.0,10.66639]
[1743181433407,6.0599923,1875.2,1875.0,6.399799]
[1743181433612,6.0599923,1875.2,1875.0,5.33316]
[1743181433802,6.0599923,1875.2,1875.0,10.66633]
[1743181433998,6.0599923,1875.2,1874.8,7.254576]
[1743181434741,11.3928923,1875.2,1874.9,5.33361]
[1743181434935,6.0599923,1875.2,1874.9,5.33346]
[1743181435728,6.0599923,1875.2,1875.0,5.33309]
[1743181436137,6.0599923,1875.2,1874.9,10.66693]
[1743181436340,11.3929223,1875.2,1874.8,7.254426]
[1743181436701,11.3929223,1875.2,1874.8,12.588176]
[1743181437298,11.3929223,1875.2,1874.9,5.33352]
[1743181438838,6.0599923,1875.2,1874.9,5.3335]
[1743181439232,11.3928823,1875.2,1874.8,12.588316]
[1743181439438,5.33305,1875.1,1874.8,7.254456]
[1743181439644,5.33305,1875.1,1874.8,6.11008]
[1743181439837,5.33356,1875.0,1874.8,0.7763]
[1743181440046,5.33399,1874.8,1874.6,0.8013]
[1743181440711,11.3933523,1875.0,1874.6,6.13568]
[1743181440928,11.3933523,1875.0,1874.7,5.33407]
[1743181441126,6.0599923,1875.0,1874.7,5.33418]
[1743181441318,6.0599923,1875.0,1874.9,0.7781]
[1743181441560,6.0599923,1875.0,1874.9,6.11171]
[1743181441723,6.0599923,1875.0,1874.7,6.11213]
[1743181441928,11.3934523,1875.0,1874.7,11.44618]
[1743181442128,6.0599923,1875.0,1874.8,5.33387]
[1743181442351,6.0599923,1875.0,1874.9,5.33361]
[1743181442734,6.0599923,1875.0,1874.9,6.11171]
[1743181445328,12.45212452,1875.3,1875.0,5.33329]
[1743181445749,12.45212452,1875.3,1875.0,10.66648]
[1743181445972,7.11964452,1875.3,1875.0,5.33319]
[1743181446149,7.11964452,1875.3,1875.1,10.66591]
[1743181446570,7.11964452,1875.3,1875.1,5.33287]
[1743181446875,7.11964452,1875.3,1875.2,5.33276]
[1743181447068,7.11964452,1875.3,1875.1,5.33304]
[1743181447267,7.11964452,1875.3,1875.1,10.66598]
[1743181447579,7.11964452,1875.3,1875.2,5.33276]
[1743181447782,7.11964452,1875.3,1875.2,6.09416]
[1743181448382,7.11964452,1875.3,1875.2,0.7614]
[1743181448549,7.11964452,1875.3,1875.2,6.09416]
[1743181449372,7.11964452,1875.3,1875.0,6.13597]
[1743181449573,7.11964452,1875.3,1875.0,11.46909]
[1743181449882,7.11964452,1875.3,1875.1,10.66587]
[1743181450180,7.11964452,1875.3,1875.2,5.33276]
[1743181450382,6.0599923,1875.6,1875.0,6.13595]
[1743181450599,6.0599923,1875.6,1875.4,0.7959]
[1743181450600,11.3916323,1875.6,1875.4,0.7959]
[1743181450764,6.0599923,1875.6,1875.4,0.7959]
[1743181451081,7.13605134,1875.6,1875.4,0.7959]
[1743181451455,12.46776134,1875.6,1875.4,0.7959]
[1743181452195,17.79958134,1875.6,1875.4,0.7959]
[1743181452375,12.46776134,1875.6,1875.4,0.7959]
[1743181452883,17.79956134,1875.6,1875.3,5.33246]
[1743181453587,17.79956134,1875.6,1875.2,11.43545]
[1743181454185,12.46776134,1875.6,1875.2,11.43545]
[1743181454648,12.46776134,1875.6,1875.3,5.33246]
[1743181454847,7.13605134,1875.6,1875.3,5.33246]
[1743181455052,12.46768134,1875.6,1875.2,11.43555]
[1743181456190,17.79950134,1875.6,1875.2,6.10282]
[1743181456493,12.46768134,1875.6,1875.2,6.10281]
[1743181456657,12.46768134,1875.6,1875.2,11.43541]
[1743181456853,12.46768134,1875.6,1875.3,5.33243]
[1743181457586,7.13605134,1875.6,1875.3,10.66475]
[1743181457757,7.13605134,1875.6,1875.3,5.33232]
[1743181457953,7.13605134,1875.6,1875.4,5.33203]
[1743181458188,7.13605134,1875.6,1875.3,5.33232]
[1743181458384,6.0599923,1875.6,1875.4,5.33193]
[1743181458583,6.0599923,1875.6,1875.5,6.09851]
[1743181460059,11.3904923,1876.0,1875.7,5.33124]
[1743181460399,5.33086,1875.9,1875.6,5.33148]
[1743181460686,5.33086,1875.9,1875.5,6.09846]
[1743181460887,5.33121,1875.8,1875.4,5.33207]
[1743181461697,5.33121,1875.8,1875.5,5.33181]
[1743181461880,5.33105,1875.8,1875.3,9.10233]
[1743181462191,5.33105,1875.8,1875.0,0.39935012]
[1743181462192,10.66407,1875.5,1875.1,5.33289]
[1743181462488,5.33199,1875.5,1875.1,5.33289]
[1743181462661,10.66409,1875.5,1875.1,5.33289]
[1743181463061,5.33199,1875.5,1875.1,5.33283]
[1743181463275,5.33199,1875.5,1875.1,10.66566]
[1743181463485,10.66406,1875.5,1875.1,5.33283]
[1743181463693,5.33233,1875.4,1875.1,5.33283]
[1743181464094,10.6647,1875.4,1875.0,6.10338]
[1743181464299,5.33196,1875.5,1875.1,5.38610305]
[1743181464500,10.66404,1875.5,1875.1,5.33278]
[1743181464689,11.75325372,1875.5,1875.1,5.33278]
[1743181465077,5.33221,1875.4,1875.1,5.3861047]
[1743181465479,5.33221,1875.4,1875.1,0.0533247]
[1743181465680,5.33221,1875.4,1875.1,5.3862747]
[1743181466090,5.33221,1875.4,1875.1,5.3863547]
[1743181466399,6.42116372,1875.5,1875.2,5.33274]
[1743181466596,1.08921372,1875.5,1875.2,5.33258]
[1743181466786,6.42112372,1875.5,1875.2,5.33258]
[1743181467295,5.3326,1875.3,1875.0,6.10342]
[1743181467489,9.18877591,1875.2,1874.8,0.7881]
[1743181467690,5.33346,1875.0,1874.6,10.66857]
[1743181467871,16.7269223,1875.0,1874.6,5.33428]
[1743181468072,11.3934523,1875.0,1874.7,5.33414]
[1743181468473,16.7269623,1875.0,1874.6,5.33428]
[1743181468686,11.3934523,1875.0,1874.6,10.66863]
[1743181468905,5.33367,1874.9,1874.6,5.33428]
[1743181469088,5.33367,1874.9,1874.6,6.701179]
[1743181469295,11.3934323,1875.0,1874.6,12.035489]
[1743181469493,6.0599923,1875.0,1874.7,5.33404]
[1743181469811,6.0599923,1875.0,1874.8,5.33375]
[1743181470222,6.0599923,1875.0,1874.8,5.33373]
[1743181470675,6.0599923,1875.0,1874.9,5.33361]
[1743181471010,6.0599923,1875.0,1874.8,11.813186]
[1743181471213,6.0599923,1875.0,1874.8,6.479406]
[1743181471417,6.0599923,1875.0,1874.8,1.145636]
[1743181471595,6.0599923,1875.0,1874.8,6.479396]
[1743181471928,6.0599923,1875.0,1874.7,6.12247]
[1743181472224,11.3933523,1875.0,1874.7,6.12247]
[1743181474394,5.33364,1874.9,1874.7,0.7885]
[1743181474592,5.33364,1874.9,1874.6,6.701349]
[1743181474912,10.66743,1874.9,1874.5,6.11735]
[1743181475116,5.33392,1874.8,1874.5,11.452]
[1743181475315,5.33364,1874.9,1874.6,5.33432]
[1743181475723,11.3933723,1875.0,1874.7,5.33416]
[1743181475935,16.7268623,1875.0,1874.6,10.66867]
[1743181476137,11.3933723,1875.0,1874.6,10.66867]
[1743181476326,16.7268823,1875.0,1874.6,10.66867]
[1743181476514,11.3933723,1875.0,1874.6,10.66867]
[1743181476834,6.0599923,1875.0,1874.8,5.3337]
[1743181477007,6.0599923,1875.0,1874.9,6.11631]
[1743181477439,6.0599923,1875.0,1874.9,0.7827]
[1743181478134,6.0599923,1875.0,1874.8,5.3337]
[1743181479938,6.0599923,1875.0,1874.7,6.11672]
[1743181480118,11.3933223,1875.0,1874.7,6.11672]
[1743181480314,5.33371,1874.9,1874.7,0.7827]
[1743181480521,5.33458,1874.6,1874.3,0.7884]
[1743181480910,5.33497,1874.5,1874.1,6.17418]
[1743181481111,5.33517,1874.4,1874.1,0.05]
[1743181481336,9.19134591,1874.3,1874.1,0.05]
[1743181481519,5.3356,1874.2,1874.1,0.05]
[1743181481838,11.3955923,1874.2,1874.1,0.05]
[1743181485943,12.47676594,1874.2,1874.1,0.05]
[1743181486554,16.33258185,1874.2,1874.1,0.05]
[1743181487825,12.47676594,1874.2,1874.1,0.05]
[1743181490562,16.33258185,1874.2,1874.1,0.05]
[1743181493363,12.47676594,1874.2,1874.1,0.05]
[1743181495460,6.0599923,1874.2,1874.1,0.05]
[1743181496162,6.0599923,1874.2,1874.1,0.8381]
[1743181497277,6.0599923,1874.2,1874.1,6.17399]
[1743181498247,1.07848068,1874.3,1874.2,5.3356]
[1743181500137,6.41390068,1874.3,1874.1,0.8381]
[1743181500333,5.3356,1874.2,1874.1,0.05]
[1743181500539,15.80140821,1874.2,1874.1,0.05]
[1743181500836,44.04840821,1874.2,1874.1,0.05]
[1743181502545,39.6425923,1874.2,1874.1,0.05]
[1743181502940,44.9085923,1874.2,1874.1,0.05]
[1743181503846,48.76440821,1874.2,1874.1,0.05]
[1743181505371,49.31440821,1874.2,1874.1,0.05]
[1743181505749,39.6425923,1874.2,1874.1,0.05]
[1743181510392,11.3955923,1874.2,1874.1,0.05]
[1743181511292,6.0599923,1874.2,1874.1,0.05]
[1743181512080,6.0599923,1874.2,1874.1,0.8422]
[1743181512462,6.0599923,1874.2,1874.1,6.17809]
[1743181512662,6.0599923,1874.5,1874.4,6.12724]
[1743181512978,6.0599923,1874.5,1874.4,0.7922]
[1743181513185,6.0599923,1874.5,1874.4,6.12724]
[1743181513575,6.0599923,1874.8,1874.7,6.12638]
[1743181513987,6.0599923,1874.8,1874.7,0.7922]
[1743181514162,6.0599923,1874.8,1874.7,6.739029]
[1743181516198,1.08949249,1875.0,1874.9,5.33361]
[1743181516401,1.08949249,1875.0,1874.9,6.16141]
[1743181517388,1.08949249,1875.0,1874.9,0.8278]
[1743181517700,1.08949249,1875.0,1874.6,5.33443]
[1743181517701,10.66795,1874.8,1874.4,6.1425]
[1743181517865,10.66795,1874.8,1874.4,0.8075]
[1743181517866,5.33425,1874.7,1874.4,0.8075]
[1743181518065,11.3946623,1874.6,1874.2,11.47847]
[1743181518399,11.3946623,1874.6,1874.2,6.14296]
[1743181518567,6.0599923,1874.6,1874.2,0.8075]
[1743181518903,10.6699,1874.5,1874.1,5.38588]
[1743181519067,5.33494,1874.5,1874.1,5.38588]
[1743181519396,5.33494,1874.5,1874.1,10.72164]
[1743181519591,20.58502821,1874.6,1874.2,5.33543]
[1743181519794,5.33489,1874.5,1874.2,5.33543]
[1743181520189,10.6698,1874.5,1874.1,5.38576]
[1743181520390,5.33489,1874.5,1874.1,5.38572]
[1743181520695,1.09430851,1874.3,1874.1,10.7215]
[1743181520897,1.09430851,1874.3,1874.1,5.38572]
[1743181521207,1.09430851,1874.3,1874.1,0.05]
[1743181521504,5.3356,1874.2,1874.1,0.05]
[1743181523498,11.3955923,1874.2,1874.1,0.05]
[1743181525499,15.25140821,1874.2,1874.1,0.05]
[1743181525808,11.3955923,1874.2,1874.1,0.05]
[1743181526998,6.0599923,1874.2,1874.1,0.05]
[1743181527806,11.3955923,1874.2,1874.1,0.05]
[1743181529015,19.38330941,1874.2,1874.1,1e-05]
[1743181529226,19.98865565,1874.2,1874.1,1e-05]
[1743181531019,18.80140821,1874.2,1874.1,1e-05]
[1743181531803,19.38330941,1874.2,1874.1,1e-05]
[1743181532181,19.38330941,1874.2,1873.0,6.16409]
[1743181532182,5.33798,1873.4,1873.0,6.16409]
[1743181532382,6.0599823,1873.3,1873.0,6.16409]
[1743181532604,6.0599823,1873.3,1873.0,7.314429]
[1743181532804,6.0599823,1873.3,1873.0,1.975439]
[1743181533031,5.33874,1873.1,1873.0,0.8251]
[1743181533178,5.33874,1873.1,1872.8,0.7503]
[1743181533635,5.33923,1873.0,1872.8,0.7503]
[1743181533804,5.33921,1873.0,1872.8,0.7503]
[1743181534207,10.67843,1873.0,1872.8,0.7503]
[1743181534418,5.33931,1872.9,1872.6,0.8082]
[1743181534700,10.6795,1872.8,1872.6,0.8082]
[1743181534911,5.33962,1872.8,1872.6,0.8082]
[1743181535395,5.33988,1872.7,1872.6,0.8082]
[1743181535597,5.33988,1872.7,1872.4,5.34056]
[1743181535598,11.3999023,1872.7,1872.4,0.8126]
[1743181535816,6.0599823,1872.7,1872.4,0.8126]
[1743181536016,6.0599823,1872.7,1872.5,5.34028]
[1743181536717,6.0599823,1872.7,1872.6,5.34016]
[1743181536932,6.0599823,1872.7,1872.6,6.09316]
[1743181538035,6.0599823,1872.7,1872.5,5.34028]
[1743181538332,7.13073577,1872.7,1872.5,5.34028]
[1743181538917,7.13073577,1872.7,1872.4,0.753]
[1743181539124,5.34018,1872.6,1872.4,0.753]
[1743181539339,12.47087577,1872.7,1872.4,0.753]
[1743181539852,12.47079577,1872.7,1872.4,0.753]
[1743181540244,7.13073577,1872.7,1872.4,6.09357]
[1743181540554,1.07075347,1872.7,1872.6,6.13776]
[1743181541046,1.07075347,1872.7,1872.6,0.7976]
[1743181541643,1.07075347,1872.7,1872.6,6.13776]
[1743181541809,6.0599823,1873.1,1872.8,5.33937]
[1743181542009,6.0599823,1873.1,1872.8,10.67886]
[1743181542206,6.0599823,1873.1,1872.8,5.33937]
[1743181542621,6.0599823,1873.1,1873.0,0.7794]
[1743181542823,7.11895513,1873.1,1873.0,6.11842]
[1743181543048,7.11895513,1873.1,1873.0,0.7794]
[1743181543342,7.11895513,1873.1,1873.0,6.11842]
[1743181543650,7.11895513,1873.1,1873.0,0.7794]
[1743181543856,12.45773513,1873.1,1872.8,6.14956]
[1743181544058,7.11895513,1873.1,1872.8,11.48902]
[1743181544360,7.11895513,1873.1,1872.8,11.48895]
[1743181544710,7.11895513,1873.1,1872.8,6.14944]
[1743181544949,7.11895513,1873.1,1872.9,5.33919]
[1743181545129,7.11895513,1873.1,1872.9,5.3393]
[1743181545322,7.11895513,1873.1,1872.8,6.14944]
[1743181545622,7.11895513,1873.1,1872.9,5.3393]
[1743181547300,7.11895513,1873.1,1873.0,5.33902]
[1743181547653,7.11895513,1873.1,1872.9,10.67836]
[1743181547880,7.11895513,1873.1,1872.9,5.33916]
[1743181548379,7.11895513,1873.1,1873.0,5.33902]
[1743181548647,7.11895513,1873.1,1872.9,5.33916]
[1743181549898,7.11895513,1873.1,1873.0,5.33902]
[1743181550101,7.11895513,1873.1,1872.9,10.6783]
[1743181550274,7.11895513,1873.1,1872.9,5.33915]
[1743181550671,7.11895513,1873.1,1872.8,6.14954]
[1743181550907,12.45770513,1873.1,1872.8,6.14954]
[1743181551271,17.72270513,1873.1,1872.8,0.81]
[1743181551490,17.72270513,1873.1,1872.8,6.14955]
[1743181551812,17.72270513,1873.1,1872.7,5.33973]
[1743181551813,5.33907,1873.0,1872.7,5.33973]
[1743181552113,5.33907,1873.0,1872.6,11.47543]
[1743181552266,5.33907,1873.0,1872.7,5.33986]
[1743181552471,6.0599823,1872.9,1872.7,5.33986]
[1743181554002,6.0599823,1872.9,1872.8,5.33959]
[1743181554295,6.0599823,1872.9,1872.7,10.67942]
[1743181554504,6.0599823,1872.9,1872.7,5.33967]
[1743181554795,7.11722978,1872.9,1872.7,5.33967]
[1743181555373,7.11722978,1872.9,1872.6,6.13541]
[1743181555701,12.45666978,1872.9,1872.5,5.34042]
[1743181555874,5.33964,1872.8,1872.5,10.68072]
[1743181556077,12.45666978,1872.9,1872.5,10.68072]
[1743181556078,12.45665978,1872.9,1872.6,5.34014]
[1743181556409,7.11722978,1872.9,1872.6,10.68022]
[1743181556998,7.11722978,1872.9,1872.7,5.3398]
[1743181557207,7.11722978,1872.9,1872.8,5.33959]
[1743181558105,7.11722978,1872.9,1872.7,6.16073]
[1743181558301,7.11722978,1872.9,1872.7,11.50045]
[1743181558620,7.11722978,1872.9,1872.7,6.1607]
[1743181558900,7.11722978,1872.9,1872.7,6.16087]
[1743181559402,5.33973,1872.8,1872.5,5.34045]
[1743181559826,6.0599823,1872.7,1872.5,5.34031]
[1743181559980,6.0599823,1872.7,1872.6,5.34016]
[1743181560480,6.0599823,1872.7,1872.4,10.68134]
[1743181560692,6.0599823,1872.7,1872.5,5.34036]
[1743181562378,6.0599823,1872.7,1872.5,10.68058]
[1743181562718,6.0599823,1872.7,1872.6,6.11186]
[1743181567894,6.0599823,1872.7,1872.5,5.34022]
[1743181568287,6.0599823,1872.7,1872.6,5.34016]
[1743181568521,6.0599823,1872.7,1872.4,6.11212]
[1743181569114,16.6638623,1872.7,1872.4,6.11202]
[1743181569318,16.6638623,1872.7,1872.3,5.34099]
[1743181569498,5.3402,1872.6,1872.3,5.34099]
[1743181569815,5.34051,1872.5,1872.2,0.8222]
[1743181570119,5.34046,1872.5,1872.1,5.3915]
[1743181570282,5.34075,1872.4,1872.1,0.05]
[1743181570483,5.264,1872.3,1872.1,5.39137]
[1743181570888,5.264,1872.3,1872.2,5.3413]
[1743181571091,6.0599823,1872.5,1872.4,5.34073]
[1743181571289,11.3249823,1872.5,1872.4,5.34073]
[1743181571519,6.0599823,1872.5,1872.4,5.34073]
[1743181571690,6.0599823,1872.5,1872.4,6.14583]
[1743181571886,5.265,1872.7,1872.6,5.34016]
[1743181572115,12.38222978,1872.9,1872.6,5.34016]
[1743181572288,12.38222978,1872.9,1872.7,5.33975]
[1743181572617,12.38222978,1872.9,1872.8,5.33959]
[1743181572783,12.38222978,1872.9,1872.8,6.15199]
[1743181572784,6.0599823,1872.9,1872.8,6.15199]
[1743181572988,6.0599823,1872.9,1872.8,7.301164]
[1743181573293,5.264,1873.2,1872.8,7.301164]
[1743181573484,5.264,1873.2,1873.1,5.33874]
[1743181574222,34.3269823,1873.3,1873.1,5.33874]
[1743181574415,34.3269823,1873.3,1873.0,5.33902]
[1743181574587,5.33846,1873.2,1872.9,5.33921]
[1743181574788,5.33846,1873.2,1872.8,6.15179]
[1743181574789,6.43615812,1873.2,1872.8,6.15179]
[1743181574984,6.43615812,1873.2,1872.8,5.33939]
[1743181575227,5.3392,1873.0,1872.6,6.12093]
[1743181575517,5.264,1873.0,1872.7,5.33974]
[1743181576016,15.94256,1873.0,1872.6,6.12093]
[1743181576219,10.60325,1873.0,1872.6,11.46092]
[1743181577489,15.94252,1873.0,1872.6,6.12079]
[1743181577806,10.60326,1873.0,1872.6,6.12086]
[1743181578011,15.94253,1873.0,1872.6,6.12086]
[1743181578215,10.60326,1873.0,1872.6,6.12082]
[1743181578713,10.60326,1873.0,1872.7,5.33985]
[1743181579795,10.60326,1873.0,1872.6,11.46085]
[1743181580004,10.60326,1873.0,1872.5,5.34041]
[1743181580005,5.33945,1872.9,1872.5,5.34041]
[1743181580190,11.3994323,1872.9,1872.5,5.34041]
[1743181580391,5.34002,1872.7,1872.3,10.68184]
[1743181580604,10.60423,1872.6,1872.3,5.34087]
[1743181580994,5.264,1872.6,1872.4,5.34069]
[1743181581196,5.264,1872.6,1872.4,5.34064]
[1743181581424,5.264,1872.6,1872.3,10.6819]
[1743181581612,5.264,1872.6,1872.3,10.68181]
[1743181581808,5.264,1872.6,1872.4,5.34073]
[1743181582301,5.264,1872.6,1872.2,0.7688]
[1743181582626,5.264,1872.6,1872.3,10.68169]
[1743181582824,5.264,1872.6,1872.3,5.34079]
[1743181583326,5.264,1872.6,1872.4,5.34073]
[1743181583515,5.264,1872.6,1872.5,5.34045]